bitfinex-derivatives/quotes_BTCF0:USTF0_20250904
["timestamp","ask_amount","ask_price","bid_price","bid_amount"]
[1757026711078,0.01361326,111600.0,111590.0,1.89450238]
[1757026711276,0.01361326,111600.0,111590.0,0.90094238]
[1757026711577,0.01361326,111600.0,111590.0,1.80393398]
[1757026711774,0.01361326,111600.0,111590.0,1.81311887]
[1757026712676,0.01361326,111600.0,111590.0,0.82051887]
[1757026712878,0.01361326,111600.0,111590.0,1.81151887]
[1757026713370,0.01361326,111600.0,111590.0,0.82051887]
[1757026713571,0.01361326,111600.0,111590.0,1.81147887]
[1757026713876,0.01361326,111600.0,111590.0,1.81039887]
[1757026714383,0.01361326,111600.0,111590.0,1.81011887]
[1757026715083,0.01361326,111600.0,111590.0,1.97110286]
[1757026716179,0.01361326,111600.0,111590.0,2.22110286]
[1757026717177,0.01361326,111600.0,111590.0,1.23150286]
[1757026717375,0.01361326,111600.0,111590.0,0.89189446]
[1757026717877,0.01361326,111600.0,111590.0,1.87761446]
[1757026718878,0.01361326,111600.0,111590.0,0.89189446]
[1757026719079,0.29887326,111600.0,111590.0,0.00010014]
[1757026719781,0.65967326,111600.0,111590.0,0.00010014]
[1757026719983,0.65717276,111600.0,111580.0,0.01812236]
[1757026720185,0.39606,111590.0,111580.0,0.0001]
[1757026720384,0.03526,111580.0,111570.0,0.0001]
[1757026720584,0.03526,111570.0,111560.0,0.98402]
[1757026720787,0.28526,111570.0,111560.0,0.98392]
[1757026720989,0.28526,111570.0,111560.0,0.98376]
[1757026721289,0.01291,111560.0,111550.0,2.74648434]
[1757026721488,0.01291,111560.0,111550.0,2.74638434]
[1757026721787,0.28526,111560.0,111550.0,0.03178434]
[1757026721991,0.64606,111560.0,111550.0,0.03178434]
[1757026722674,0.64606,111560.0,111550.0,0.04546331]
[1757026722875,0.39606,111560.0,111550.0,0.03178434]
[1757026723079,0.03526,111540.0,111530.0,0.3608]
[1757026723290,0.03526,111530.0,111520.0,0.01899316]
[1757026723584,0.64606,111530.0,111520.0,0.01909316]
[1757026723788,0.64606,111530.0,111520.0,0.01209316]
[1757026724286,0.64606,111530.0,111520.0,0.02345316]
[1757026724287,0.03526,111530.0,111520.0,0.02345316]
[1757026724479,0.01314466,111540.0,111520.0,0.38425316]
[1757026724682,0.01314466,111540.0,111530.0,0.37216]
[1757026724884,0.00013466,111540.0,111530.0,1.35132]
[1757026725882,0.01381466,111540.0,111530.0,0.37216]
[1757026726084,0.01381466,111540.0,111530.0,1.35072]
[1757026728288,0.00013466,111540.0,111530.0,1.38260434]
[1757026729596,0.01381466,111540.0,111530.0,1.38260434]
[1757026730585,0.01381466,111540.0,111530.0,1.35072]
[1757026730790,0.01381466,111540.0,111530.0,1.38260434]
[1757026731292,0.28585466,111540.0,111530.0,0.43523524]
[1757026731510,0.00013466,111540.0,111530.0,0.37216]
[1757026731802,0.00013466,111540.0,111530.0,0.46712816]
[1757026732007,0.0001,111550.0,111530.0,0.80857455]
[1757026732204,0.0001,111550.0,111540.0,1.37510434]
[1757026732407,0.01368,111550.0,111540.0,1.40605145]
[1757026732597,0.03572,111550.0,111540.0,1.40617145]
[1757026733204,0.28572,111550.0,111540.0,1.04517145]
[1757026733706,0.28572,111550.0,111540.0,0.06307145]
[1757026734413,0.03572,111540.0,111530.0,0.42407145]
[1757026734706,0.03572,111540.0,111530.0,0.43501145]
[1757026735603,0.03572,111540.0,111530.0,0.42387145]
[1757026735907,0.01368,111540.0,111530.0,0.43501145]
[1757026737102,0.03572,111540.0,111530.0,0.43501145]
[1757026737307,0.03572,111540.0,111530.0,0.07421145]
[1757026737601,0.03572,111530.0,111520.0,0.0962701]
[1757026737807,0.03572,111530.0,111520.0,0.07962301]
[1757026738110,0.64652,111530.0,111520.0,0.07962301]
[1757026738299,0.64652,111530.0,111520.0,0.01647316]
[1757026738697,0.64652,111530.0,111520.0,0.00947316]
[1757026738906,0.03572,111520.0,111510.0,0.06338985]
[1757026739098,0.39652,111520.0,111510.0,0.06318985]
[1757026739299,0.64652,111520.0,111510.0,0.06318985]
[1757026740800,0.64652,111520.0,111510.0,0.03518985]
[1757026740995,0.02204,111510.0,111500.0,0.1225119]
[1757026741195,0.02204,111510.0,111500.0,0.02934496]
[1757026741500,0.01378,111520.0,111500.0,0.40351496]
[1757026741698,0.0001,111520.0,111510.0,1.36697]
[1757026741896,0.0001,111530.0,111520.0,0.03573]
[1757026742107,0.0001,111540.0,111530.0,0.03573]
[1757026742310,0.0001,111550.0,111540.0,0.03573]
[1757026742511,0.37458,111560.0,111540.0,0.39653]
[1757026742709,0.37458,111560.0,111540.0,0.39673]
[1757026743110,0.02204,111550.0,111540.0,0.39673]
[1757026743306,0.0001,111560.0,111550.0,0.01337]
[1757026743505,0.37458,111570.0,111550.0,1.00421]
[1757026743814,0.0001,111570.0,111560.0,0.03573]
[1757026744112,0.00047,111580.0,111570.0,0.03573]
[1757026744308,0.00037,111580.0,111570.0,0.39653]
[1757026744503,0.02241,111580.0,111570.0,0.02236]
[1757026744708,0.01368,111570.0,111560.0,1.32824]
[1757026744904,0.01368,111570.0,111560.0,1.328]
[1757026745110,0.03572,111570.0,111550.0,0.37437]
[1757026745312,0.03582,111570.0,111550.0,1.34121]
[1757026746008,0.03582,111570.0,111560.0,0.02236]
[1757026746215,0.03572,111570.0,111560.0,0.02236]
[1757026746404,0.02204,111570.0,111560.0,0.02236]
[1757026747812,0.39652,111570.0,111550.0,1.32548]
[1757026748008,0.01368,111560.0,111550.0,0.361]
[1757026748206,0.03572,111560.0,111540.0,3.15100694]
[1757026748409,0.03582,111560.0,111540.0,3.15100694]
[1757026749720,0.0001,111560.0,111550.0,0.39653]
[1757026749915,0.02214,111570.0,111560.0,0.03573]
[1757026750116,0.02204,111570.0,111560.0,0.03573]
[1757026751418,0.03572,111570.0,111560.0,0.02236]
[1757026751609,0.03572,111570.0,111550.0,1.39789892]
[1757026751809,0.03582,111570.0,111550.0,1.42978326]
[1757026752915,0.03582,111570.0,111550.0,1.39789892]
[1757026753711,0.03582,111570.0,111560.0,0.02236]
[1757026753910,0.03572,111570.0,111560.0,0.02236]
[1757026754314,0.03572,111570.0,111560.0,0.08560892]
[1757026755018,0.02204,111570.0,111560.0,0.08560892]
[1757026755320,0.02204,111570.0,111560.0,0.09925892]
[1757026756214,0.37495,111580.0,111560.0,0.74194326]
[1757026756215,0.00047,111580.0,111560.0,0.74194326]
[1757026756407,0.02274,111580.0,111570.0,0.99411]
[1757026756606,0.02264,111580.0,111570.0,1.35491]
[1757026756811,0.02264,111580.0,111570.0,0.99411]
[1757026757019,0.02227,111580.0,111570.0,1.35491]
[1757026757319,0.02227,111580.0,111570.0,1.41815892]
[1757026758419,0.02237,111590.0,111580.0,0.03695]
[1757026758615,0.02227,111590.0,111580.0,0.03695]
[1757026759319,0.02227,111590.0,111580.0,0.0233]
[1757026761019,0.39657,111590.0,111580.0,0.0233]
[1757026761517,0.03577,111590.0,111580.0,0.0233]
[1757026761717,0.02227,111590.0,111580.0,0.0233]
[1757026761912,0.03348276,111600.0,111590.0,0.03695]
[1757026762218,0.03338276,111600.0,111590.0,0.03695]
[1757026762416,0.03338276,111600.0,111590.0,1.34855]
[1757026763317,0.04688276,111600.0,111590.0,0.3841]
[1757026763517,0.04688276,111600.0,111590.0,0.0233]
[1757026764715,0.01111276,111600.0,111590.0,0.03695]
[1757026765019,0.01111276,111600.0,111590.0,0.84271284]
[1757026765217,0.01111276,111600.0,111590.0,1.71768408]
[1757026765823,0.01111276,111600.0,111590.0,1.80729248]
[1757026766019,0.01111276,111600.0,111590.0,1.37803434]
[1757026766214,0.01111276,111600.0,111590.0,1.44110397]
[1757026766523,0.01111276,111600.0,111590.0,0.49270397]
[1757026766820,0.03338276,111600.0,111590.0,0.49270397]
[1757026767017,0.03338276,111600.0,111590.0,1.43918397]
[1757026767521,0.03338276,111600.0,111590.0,1.37611434]
[1757026768322,0.04688276,111600.0,111590.0,0.0233]
[1757026768517,0.04688276,111600.0,111590.0,0.93188]
[1757026768722,0.65768276,111600.0,111590.0,0.93188]
[1757026768923,0.65768276,111600.0,111580.0,0.361]
[1757026769119,0.0135,111590.0,111580.0,1.3056]
[1757026769423,0.0135,111590.0,111580.0,0.3608]
[1757026769620,0.28577,111590.0,111570.0,0.44219963]
[1757026769919,0.03577,111580.0,111570.0,1.33266]
[1757026770230,0.39657,111580.0,111570.0,0.97166]
[1757026770423,0.64657,111580.0,111570.0,0.00448]
[1757026776133,0.03577,111570.0,111560.0,0.0002]
[1757026776330,0.03577,111560.0,111550.0,0.0002]
[1757026776631,0.03577,111550.0,111540.0,0.0235]
[1757026776931,0.03577,111550.0,111540.0,0.0233]
[1757026777124,0.03577,111550.0,111530.0,0.54231613]
[1757026777125,0.0135,111540.0,111530.0,0.42406963]
[1757026777434,0.0135,111530.0,111520.0,0.0002]
[1757026777727,0.02237,111540.0,111530.0,0.03695]
[1757026777927,0.02227,111540.0,111530.0,0.42963434]
[1757026778125,0.02227,111540.0,111530.0,0.06883434]
[1757026780126,0.0001,111550.0,111540.0,0.03695]
[1757026780430,0.3608,111560.0,111550.0,0.0233]
[1757026780431,0.02237,111560.0,111550.0,0.0233]
[1757026780631,0.03577,111560.0,111550.0,0.0233]
[1757026782020,0.03577,111560.0,111540.0,0.37465]
[1757026782226,0.03587,111560.0,111540.0,0.40653434]
[1757026782430,0.02237,111560.0,111550.0,0.0233]
[1757026782625,0.02227,111560.0,111550.0,0.03695]
[1757026782836,0.02227,111560.0,111550.0,0.05518434]
[1757026783031,0.39657,111560.0,111540.0,0.01385]
[1757026783235,0.39667,111560.0,111540.0,0.03208434]
[1757026783533,0.03577,111550.0,111540.0,0.0235]
[1757026783731,0.03577,111550.0,111540.0,0.0233]
[1757026784335,0.03577,111550.0,111530.0,0.37465]
[1757026784635,0.03587,111550.0,111530.0,0.37465]
[1757026784837,0.39667,111550.0,111530.0,0.37465]
[1757026785136,0.02237,111550.0,111540.0,0.03697]
[1757026785336,0.02227,111550.0,111540.0,0.03697]
[1757026786428,0.02227,111550.0,111540.0,0.0233]
[1757026786634,0.035,111550.0,111540.0,0.0233]
[1757026787938,0.035,111550.0,111530.0,0.37465]
[1757026788136,0.0351,111550.0,111530.0,0.40653434]
[1757026788538,0.0351,111550.0,111540.0,0.02133]
[1757026788741,0.035,111550.0,111540.0,0.02133]
[1757026789140,0.02227,111550.0,111540.0,0.035]
[1757026789342,0.02227,111550.0,111540.0,0.06688434]
[1757026789542,0.02227,111550.0,111540.0,0.42768434]
[1757026789934,0.02227,111550.0,111540.0,0.06688434]
[1757026790241,0.035,111550.0,111540.0,0.02133]
[1757026791039,0.01273,111540.0,111530.0,0.361]
[1757026791240,0.03384,111540.0,111530.0,0.41401434]
[1757026791442,0.37363,111550.0,111530.0,0.67768434]
[1757026791741,0.02121,111550.0,111540.0,0.035]
[1757026791939,0.02111,111550.0,111540.0,0.035]
[1757026792435,0.02111,111550.0,111540.0,0.02133]
[1757026792639,0.39464,111550.0,111540.0,0.02133]
[1757026792836,0.03384,111540.0,111530.0,0.361]
[1757026793046,0.03384,111540.0,111530.0,0.3608]
[1757026793245,0.03384,111540.0,111530.0,0.38213]
[1757026794642,0.03384,111540.0,111530.0,0.02133]
[1757026794847,0.39464,111540.0,111520.0,0.37465]
[1757026795153,0.03384,111530.0,111520.0,0.361]
[1757026795345,0.03384,111530.0,111520.0,0.3608]
[1757026795542,0.03384,111530.0,111520.0,0.38213]
[1757026796138,0.02111,111530.0,111520.0,0.42768434]
[1757026796737,0.39474,111540.0,111530.0,0.035]
[1757026796945,0.38191,111540.0,111530.0,0.035]
[1757026797133,0.38191,111540.0,111530.0,0.06688434]
[1757026797336,0.01283,111550.0,111530.0,0.42768434]
[1757026797648,0.02111,111540.0,111530.0,0.02153]
[1757026797845,0.39464,111540.0,111530.0,0.02133]
[1757026798145,0.03384,111540.0,111530.0,0.02133]
[1757026798536,0.02111,111540.0,111530.0,0.05321434]
[1757026798741,0.02111,111540.0,111530.0,0.42768434]
[1757026799044,0.02111,111540.0,111530.0,0.67768434]
[1757026799842,0.0001,111550.0,111530.0,0.67768434]
[1757026800050,0.02121,111550.0,111540.0,0.035]
[1757026800345,0.39464,111550.0,111540.0,0.02133]
[1757026800537,0.39464,111550.0,111540.0,0.05321434]
[1757026800743,0.02111,111550.0,111540.0,0.06688434]
[1757026801144,0.3609,111560.0,111540.0,0.06688434]
[1757026801339,0.02121,111560.0,111550.0,0.035]
[1757026801543,0.39474,111570.0,111560.0,0.035]
[1757026801739,0.38191,111570.0,111560.0,0.035]
[1757026801944,0.38201,111580.0,111570.0,0.01367]
[1757026802148,0.3608,111580.0,111570.0,0.06688434]
[1757026802450,0.39464,111580.0,111570.0,0.03188434]
[1757026802744,0.39464,111580.0,111570.0,0.05321434]
[1757026803050,0.38191,111580.0,111570.0,0.06688434]
[1757026803552,0.37363,111590.0,111580.0,0.035]
[1757026803553,0.3609,111590.0,111580.0,0.035]
[1757026803750,0.38238876,111590.0,111580.0,0.035]
[1757026803951,0.3608,111590.0,111580.0,0.06688434]
[1757026804156,0.3608,111590.0,111580.0,0.31688434]
[1757026804448,0.39312276,111600.0,111580.0,0.40635434]
[1757026804652,0.42743377,111600.0,111580.0,0.04575434]
[1757026805343,0.42743377,111600.0,111590.0,0.02133]
[1757026805542,0.41460377,111600.0,111590.0,0.02133]
[1757026805846,0.42733377,111600.0,111590.0,0.05321434]
[1757026806042,0.01273,111590.0,111580.0,0.0002]
[1757026806241,0.39464,111590.0,111580.0,0.03188434]
[1757026806637,0.03384,111580.0,111570.0,0.0002]
[1757026806837,0.39464,111580.0,111570.0,0.03188434]
[1757026807446,0.39464,111580.0,111560.0,0.0002]
[1757026807654,0.39474,111580.0,111560.0,0.03208434]
[1757026808550,0.39474,111580.0,111560.0,0.04575434]
[1757026808750,0.39474,111580.0,111560.0,0.03208434]
[1757026808952,0.01273,111570.0,111560.0,0.03208434]
[1757026809154,0.03384,111570.0,111560.0,0.05321434]
[1757026809748,0.39464,111570.0,111560.0,0.05321434]
[1757026810052,0.39464,111570.0,111560.0,0.03188434]
[1757026811055,0.39464,111570.0,111550.0,0.0002]
[1757026811244,0.39464,111560.0,111550.0,0.05341434]
[1757026811448,0.39464,111560.0,111550.0,0.05321434]
[1757026812858,0.03384,111550.0,111540.0,0.0002]
[1757026813049,0.39464,111550.0,111530.0,0.0790089]
[1757026813356,0.03384,111540.0,111530.0,0.0002]
[1757026813559,0.03384,111540.0,111520.0,2.1863589]
[1757026813857,0.03394,111540.0,111520.0,0.48536324]
[1757026814155,0.0001,111540.0,111530.0,0.06688434]
[1757026814457,0.38201,111550.0,111540.0,0.035]
[1757026814658,0.39464,111550.0,111540.0,0.02133]
[1757026814848,0.64464,111550.0,111530.0,0.0002]
[1757026815048,0.39765,111540.0,111530.0,0.0002]
[1757026815253,0.03685,111530.0,111520.0,0.0790089]
[1757026815455,0.03685,111520.0,111510.0,0.0002]
[1757026815757,0.39765,111520.0,111510.0,0.02102]
[1757026815957,0.39765,111520.0,111510.0,0.0788089]
[1757026816154,0.64765,111520.0,111510.0,0.0788089]
[1757026816358,0.64765,111520.0,111500.0,0.00270496]
[1757026816551,0.64765,111520.0,111500.0,0.08151386]
[1757026816552,0.39765,111510.0,111500.0,0.08151386]
[1757026816756,0.39765,111510.0,111500.0,0.08131386]
[1757026817559,0.39765,111510.0,111500.0,0.00250496]
[1757026819057,0.38372,111510.0,111500.0,0.3054093]
[1757026819359,0.39765,111510.0,111500.0,0.1342182]
[1757026819759,0.03685,111510.0,111500.0,0.1342182]
[1757026819963,0.39765,111510.0,111500.0,0.1342182]
[1757026820257,0.03685,111510.0,111500.0,0.1342182]
[1757026820457,0.0001,111520.0,111510.0,0.01305]
[1757026820647,0.0001,111530.0,111520.0,0.03407]
[1757026820850,0.0001,111540.0,111520.0,0.4736789]
[1757026821046,0.0001,111540.0,111530.0,0.03407]
[1757026821258,0.37473,111580.0,111570.0,0.03407]
[1757026821259,0.0001,111580.0,111570.0,0.03407]
[1757026821554,0.01111276,111600.0,111590.0,0.01305]
[1757026821753,0.01111276,111600.0,111590.0,0.37385]
[1757026822151,0.01111276,111600.0,111590.0,0.62385]
[1757026822347,0.00411276,111600.0,111590.0,1.16388421]
[1757026822552,0.40009694,111630.0,111610.0,0.01305]
[1757026822758,0.42141185,111630.0,111610.0,0.37395]
[1757026823364,0.37473,111620.0,111610.0,0.0001]
[1757026823548,0.37473,111620.0,111600.0,0.0001]
[1757026823755,0.37473,111610.0,111600.0,0.0001]
[1757026824058,0.37473,111610.0,111580.0,0.37385]
[1757026824059,0.01393,111600.0,111590.0,0.0001]
[1757026824261,0.01393,111590.0,111580.0,0.0001]
[1757026824460,0.37473,111590.0,111570.0,0.3609]
[1757026825260,0.01393,111590.0,111570.0,0.37395]
[1757026825456,0.37473,111610.0,111580.0,0.37385]
[1757026825757,0.3608,111620.0,111600.0,0.01305]
[1757026826065,0.41402694,111630.0,111620.0,0.01305]
[1757026826066,0.03929694,111630.0,111620.0,0.01305]
[1757026826252,0.03929694,111630.0,111620.0,1.52677]
[1757026826451,0.02529694,111630.0,111620.0,0.71347179]
[1757026826656,0.01829694,111630.0,111620.0,1.61627179]
[1757026826847,0.00042,111650.0,111620.0,0.71347179]
[1757026827053,0.00042,111650.0,111640.0,0.3608]
[1757026827453,0.00042,111650.0,111630.0,1.26318]
[1757026827656,0.01435,111650.0,111630.0,0.3609]
[1757026827857,0.03541467,111650.0,111630.0,0.3609]
[1757026828054,0.01393,111640.0,111630.0,0.0001]
[1757026828361,0.01393,111640.0,111620.0,0.3609]
[1757026829157,0.37515,111650.0,111630.0,4e-05]
[1757026829347,0.37515,111650.0,111630.0,0.36094]
[1757026829551,0.01435,111650.0,111630.0,0.36094]
[1757026829948,0.00042,111650.0,111640.0,0.3608]
[1757026832364,0.01435,111650.0,111630.0,1.26138]
[1757026834354,0.01435,111650.0,111640.0,0.3608]
[1757026834750,0.00042,111650.0,111640.0,0.3608]
[1757026836163,0.26435,111650.0,111630.0,1.25802]
[1757026836361,0.01435,111650.0,111630.0,1.25802]
[1757026836556,0.01435,111650.0,111640.0,4e-05]
[1757026837362,0.01393,111650.0,111640.0,4e-05]
[1757026837562,0.01393,111650.0,111640.0,0.36084]
[1757026837765,0.02678032,111660.0,111640.0,0.36084]
[1757026837957,0.01393,111650.0,111640.0,0.00014]
[1757026838157,0.03685,111650.0,111640.0,0.02106]
[1757026838357,0.03685,111650.0,111640.0,0.38186]
[1757026838558,0.03685,111650.0,111640.0,0.02106]
[1757026839257,0.02678032,111660.0,111640.0,0.38186]
[1757026839565,0.04778126,111660.0,111640.0,0.38196]
[1757026839866,0.03385126,111660.0,111640.0,0.38864]
[1757026840064,0.03395126,111660.0,111650.0,1.27554]
[1757026840267,0.01285032,111660.0,111650.0,1.27554]
[1757026840467,0.01285032,111660.0,111650.0,1.52554]
[1757026840669,0.01285032,111660.0,111650.0,1.53206]
[1757026841360,0.0001,111670.0,111650.0,1.71117829]
[1757026841661,4e-05,111680.0,111660.0,0.39976198]
[1757026841863,0.00862262,111690.0,111680.0,0.0895326]
[1757026842070,0.00862262,111690.0,111680.0,0.6108]
[1757026842258,0.00862262,111690.0,111680.0,0.70035758]
[1757026842859,0.00862262,111690.0,111680.0,1.34375758]
[1757026843060,0.00862262,111690.0,111680.0,1.32479994]
[1757026843266,0.00862262,111690.0,111680.0,1.66433747]
[1757026843966,0.00862262,111690.0,111680.0,1.75390967]
[1757026844361,0.00046,111710.0,111690.0,0.0895241]
[1757026844672,0.00046,111710.0,111700.0,1.61428]
[1757026844861,0.00046,111710.0,111700.0,1.86428]
[1757026845264,0.01540356,111720.0,111700.0,3.70291791]
[1757026845563,0.01540356,111720.0,111710.0,0.6108]
[1757026845764,0.01540356,111720.0,111710.0,0.7003083]
[1757026845964,0.01540356,111720.0,111710.0,1.5921083]
[1757026846162,4e-05,111730.0,111710.0,1.6816258]
[1757026846366,4e-05,111730.0,111720.0,0.7003003]
[1757026846867,4e-05,111730.0,111720.0,0.78980578]
[1757026847166,0.01475233,111750.0,111740.0,0.0894843]
[1757026847364,0.06306839,111780.0,111740.0,0.82019195]
[1757026847568,0.06283005,111780.0,111770.0,0.3608]
[1757026847762,0.06283005,111780.0,111770.0,1.48316]
[1757026848073,0.01496866,111780.0,111770.0,1.50188]
[1757026848269,0.01496866,111780.0,111770.0,1.34135745]
[1757026848571,0.06283005,111780.0,111770.0,1.34107745]
[1757026848763,0.01496866,111780.0,111770.0,1.34107745]
[1757026848964,0.01496866,111780.0,111770.0,0.45027745]
[1757026848965,0.31283005,111780.0,111770.0,0.45027745]
[1757026849268,0.31283005,111780.0,111770.0,0.3608]
[1757026849568,0.01388,111770.0,111760.0,0.8905]
[1757026849772,0.0617557,111770.0,111760.0,0.8904]
[1757026850570,0.07672436,111780.0,111760.0,1.2512]
[1757026850768,0.07672436,111780.0,111760.0,1.2513]
[1757026851166,0.01496866,111780.0,111770.0,0.3608]
[1757026851364,0.06287375,111780.0,111770.0,0.3608]
[1757026851569,0.01496866,111780.0,111770.0,0.3608]
[1757026851771,0.01496866,111780.0,111770.0,0.45027344]
[1757026851973,0.01496866,111780.0,111770.0,0.70027344]
[1757026852170,0.01496866,111780.0,111770.0,0.78973414]
[1757026852678,0.01496866,111780.0,111770.0,0.70027344]
[1757026852873,0.01496866,111780.0,111770.0,0.45027344]
[1757026853080,0.01496866,111780.0,111770.0,1.33939344]
[1757026853470,0.01496866,111780.0,111770.0,0.45027344]
[1757026853777,0.32675375,111780.0,111770.0,1.24928]
[1757026854181,0.32675375,111780.0,111770.0,1.25375]
[1757026854482,0.01496866,111780.0,111770.0,1.34325544]
[1757026855075,0.01496866,111780.0,111770.0,1.59325544]
[1757026855285,0.01496866,111780.0,111770.0,1.68271634]
[1757026855889,0.01496866,111780.0,111770.0,1.35077544]
[1757026856486,0.01496866,111780.0,111770.0,0.45477544]
[1757026856793,0.01496866,111780.0,111770.0,1.35065544]
[1757026856991,0.27884866,111780.0,111770.0,1.26095]
[1757026857182,0.27884866,111780.0,111770.0,1.26067]
[1757026857593,0.27884866,111780.0,111770.0,0.00451]
[1757026857787,0.32675375,111780.0,111770.0,0.00451]
[1757026858094,0.68755375,111780.0,111770.0,0.00451]
[1757026858289,0.63964866,111780.0,111770.0,0.00451]
[1757026858484,0.38964866,111780.0,111770.0,0.00451]
[1757026858892,0.43753915,111780.0,111770.0,0.00451]
[1757026859287,0.38964866,111780.0,111770.0,0.00451]
[1757026859587,0.63964866,111780.0,111770.0,0.00451]
[1757026859795,0.01388,111770.0,111760.0,0.00014]
[1757026860000,0.42258455,111770.0,111760.0,4e-05]
[1757026860293,0.67258455,111770.0,111760.0,4e-05]
[1757026860492,0.01388,111760.0,111750.0,0.0002]
[1757026860692,0.01388,111750.0,111740.0,0.00024]
[1757026860990,0.62468,111750.0,111740.0,4e-05]
[1757026861192,0.37468,111750.0,111740.0,4e-05]
[1757026861489,0.67258984,111750.0,111740.0,4e-05]
[1757026861694,0.37468,111750.0,111740.0,4e-05]
[1757026861887,0.62468,111750.0,111740.0,4e-05]
[1757026862090,0.67258984,111750.0,111740.0,4e-05]
[1757026862599,0.01388,111720.0,111710.0,4e-05]
[1757026862896,0.37468,111720.0,111710.0,4e-05]
[1757026863097,0.62468,111720.0,111710.0,4e-05]
[1757026864598,0.37468,111720.0,111710.0,4e-05]
[1757026866195,0.01388,111720.0,111710.0,0.26053908]
[1757026866391,0.01388,111730.0,111710.0,0.61084]
[1757026866591,0.42258984,111740.0,111710.0,0.36094]
[1757026866795,0.37468,111740.0,111710.0,0.46574123]
[1757026866997,0.37468,111740.0,111710.0,0.55525013]
[1757026867196,0.37468,111740.0,111710.0,0.46574123]
[1757026867398,0.37468,111740.0,111720.0,0.89128]
[1757026867598,0.01388,111740.0,111720.0,1.25218]
[1757026867999,0.01388,111740.0,111730.0,0.3608]
[1757026868499,0.01388,111730.0,111720.0,1.25142]
[1757026868800,0.01388,111730.0,111720.0,1.26181667]
[1757026868996,0.01388,111730.0,111720.0,1.26193667]
[1757026869198,0.37468,111730.0,111710.0,0.36094]
[1757026869402,0.01388,111730.0,111710.0,1.26191769]
[1757026869698,0.01388,111720.0,111710.0,0.01063769]
[1757026869904,0.01388,111720.0,111710.0,0.01053769]
[1757026870203,0.62468,111720.0,111710.0,0.01053848]
[1757026870605,0.62468,111720.0,111710.0,4e-05]
[1757026871001,0.62468,111720.0,111710.0,0.0105386]
[1757026871206,0.26388,111720.0,111710.0,0.0105386]
[1757026871707,0.62468,111720.0,111710.0,0.08531077]
[1757026872000,0.26388,111720.0,111710.0,0.08531077]
[1757026872407,0.26388,111720.0,111710.0,0.07131259]
[1757026872806,0.0001,111740.0,111710.0,1.84328669]
[1757026873007,0.01398,111750.0,111730.0,0.3608]
[1757026873199,1.5,111760.0,111740.0,1.31282053]
[1757026873401,0.01388,111770.0,111750.0,0.42394053]
[1757026873600,0.01388,111770.0,111760.0,0.42394053]
[1757026873795,1.51388,111770.0,111760.0,0.43443913]
[1757026874409,1.5,111770.0,111760.0,0.68443913]
[1757026874604,0.01496866,111780.0,111760.0,1.68377495]
[1757026874902,0.01496866,111780.0,111770.0,1.25028]
[1757026875107,0.01496866,111780.0,111770.0,1.30762553]
[1757026875304,0.02770866,111780.0,111770.0,0.449377]
[1757026875611,0.63850866,111780.0,111770.0,0.04173571]
[1757026875906,0.63850866,111780.0,111760.0,0.03133711]
[1757026876110,1.26274,111770.0,111730.0,0.04684693]
[1757026876302,0.01274,111750.0,111730.0,0.40764693]
[1757026876508,0.37354,111760.0,111730.0,0.40764693]
[1757026876704,0.01274,111760.0,111740.0,0.40764693]
[1757026876901,0.01274,111750.0,111730.0,0.40764693]
[1757026877098,0.37354,111750.0,111720.0,0.42563316]
[1757026877309,0.37354,111740.0,111720.0,0.06483316]
[1757026877504,0.37354,111740.0,111720.0,0.01808623]
[1757026877703,0.3608,111730.0,111720.0,0.0001]
[1757026877903,0.3608,111730.0,111710.0,0.36094]
[1757026878098,0.3608,111730.0,111710.0,0.36084]
[1757026878514,0.01274,111720.0,111710.0,4e-05]
[1757026878702,0.0001,111730.0,111710.0,4e-05]
[1757026878901,0.37364,111740.0,111710.0,4e-05]
[1757026879101,0.3608,111730.0,111710.0,0.00014]
[1757026879297,0.37364,111740.0,111710.0,0.36084]
[1757026879502,0.37364,111740.0,111710.0,0.36094]
[1757026879704,0.3608,111730.0,111710.0,0.00014]
[1757026879901,0.3608,111730.0,111710.0,4e-05]
[1757026880711,0.3608,111730.0,111710.0,0.36084]
[1757026881014,0.37354,111730.0,111710.0,0.36084]
[1757026881209,0.01274,111720.0,111710.0,0.36084]
[1757026881422,1.25998,111720.0,111700.0,0.00467]
[1757026881614,0.37354,111710.0,111700.0,0.00457]
[1757026881805,0.37354,111710.0,111700.0,0.00447]
[1757026882111,0.37354,111710.0,111680.0,4e-05]
[1757026882112,0.01274,111690.0,111680.0,4e-05]
[1757026882307,1.62054,111690.0,111680.0,4e-05]
[1757026882507,0.01274,111670.0,111660.0,0.04684693]
[1757026882708,0.37354,111670.0,111650.0,0.3608]
[1757026882912,0.01274,111680.0,111650.0,0.40764693]
[1757026883107,0.37354,111680.0,111650.0,0.40764693]
[1757026883307,0.0001,111680.0,111650.0,0.40764693]
[1757026883512,0.3609,111680.0,111650.0,0.40764693]
[1757026883712,0.3609,111680.0,111660.0,0.42099693]
[1757026883907,0.0001,111680.0,111660.0,0.42099693]
[1757026884110,0.0001,111680.0,111670.0,0.40764693]
[1757026884409,0.0001,111690.0,111670.0,0.40764693]
[1757026884619,0.0001,111690.0,111680.0,0.40764693]
[1757026884810,0.0001,111700.0,111680.0,0.42099693]
[1757026885010,0.0001,111700.0,111690.0,0.3608]
[1757026885314,0.01274,111700.0,111680.0,0.40764693]
[1757026885516,0.01284,111700.0,111680.0,0.3608]
[1757026885820,0.01284,111700.0,111680.0,0.40764693]
[1757026886214,0.37364,111700.0,111680.0,0.40764693]
[1757026887217,0.37364,111700.0,111680.0,0.3608]
[1757026887419,0.01284,111700.0,111680.0,0.3608]
[1757026887922,0.37364,111700.0,111680.0,0.3608]
[1757026888812,0.01274,111690.0,111680.0,0.3608]
[1757026889407,0.01274,111690.0,111670.0,0.40764693]
[1757026889712,0.01274,111680.0,111660.0,0.40764693]
[1757026890016,0.01284,111680.0,111660.0,0.3608]
[1757026890318,0.0001,111680.0,111670.0,0.3608]
[1757026890515,0.0001,111690.0,111670.0,0.42099693]